[Event "Live Chess"]
[Site "Chess.com"]
[Date "2023.05.21"]
[Round "-"]
[White "Supertromp"]
[Black "BillythekidFellowes"]
[Result "1-0"]
[WhiteElo "2138"]
[BlackElo "2017"]
[TimeControl "300"]
[EndTime "23:48:01 PDT"]
[Termination "Supertromp won by resignation"]

1. e4 {[%clk 0:04:58.3]} 1... Nc6 {[%clk 0:04:58.7]} 2. Nf3 {[%clk 0:04:56.4]}
2... Nf6 {[%clk 0:04:56.7]} 3. e5 {[%clk 0:04:52.2]} 3... Nd5 {[%clk 0:04:55.8]}
4. d4 {[%clk 0:04:51.4]} 4... Nb6 {[%clk 0:04:55]} 5. d5 {[%clk 0:04:40.4]} 5...
Nb8 {[%clk 0:04:53.4]} 6. Nc3 {[%clk 0:04:37.4]} 6... e6 {[%clk 0:04:46.4]} 7.
a4 {[%clk 0:04:31.7]} 7... a5 {[%clk 0:04:44.5]} 8. d6 {[%clk 0:04:27.7]} 8...
cxd6 {[%clk 0:04:40.7]} 9. exd6 {[%clk 0:04:27.6]} 9... Nc6 {[%clk 0:04:28.8]}
10. Nb5 {[%clk 0:04:25.5]} 10... Nd5 {[%clk 0:04:16.1]} 11. c4 {[%clk
0:04:24.3]} 11... Bxd6 {[%clk 0:04:13.1]} 12. Nxd6+ {[%clk 0:04:22.8]} 12... Ke7
{[%clk 0:04:13]} 13. cxd5 {[%clk 0:04:22.1]} 13... Kxd6 {[%clk 0:04:12.2]} 14.
dxc6+ {[%clk 0:04:21.2]} 14... Kxc6 {[%clk 0:04:12.1]} 1-0

[Event "Live Chess"]
[Site "Chess.com"]
[Date "2023.05.21"]
[Round "-"]
[White "Nazar_777"]
[Black "Goblinbasher"]
[Result "1-0"]
[WhiteElo "1602"]
[BlackElo "1234"]
[TimeControl "300"]
[EndTime "23:48:04 PDT"]
[Termination "Nazar_777 won by resignation"]

1. e3 {[%clk 0:04:59.1]} 1... e5 {[%clk 0:04:55.5]} 2. h4 {[%clk 0:04:55.4]}
2... d5 {[%clk 0:04:49.9]} 3. a3 {[%clk 0:04:54.2]} 3... f5 {[%clk 0:04:42]} 4.
c4 {[%clk 0:04:52.9]} 4... Nf6 {[%clk 0:04:37.9]} 5. cxd5 {[%clk 0:04:51.8]}
5... Nxd5 {[%clk 0:04:36.2]} 6. Nc3 {[%clk 0:04:51.2]} 6... Nxc3 {[%clk
0:04:33.1]} 7. bxc3 {[%clk 0:04:50.2]} 7... Nc6 {[%clk 0:04:31.6]} 8. Be2 {[%clk
0:04:49.5]} 8... Be6 {[%clk 0:04:21.9]} 9. Qc2 {[%clk 0:04:48.4]} 9... a6 {[%clk
0:04:08.2]} 10. Bb2 {[%clk 0:04:47.2]} 10... Be7 {[%clk 0:04:00.8]} 11. Rc1
{[%clk 0:04:45.9]} 11... O-O {[%clk 0:03:56.2]} 12. Nf3 {[%clk 0:04:43.8]} 12...
Bd6 {[%clk 0:03:45]} 13. Ng5 {[%clk 0:04:42.5]} 13... Qf6 {[%clk 0:03:38.4]} 14.
g4 {[%clk 0:04:40.5]} 14... h6 {[%clk 0:03:33.6]} 15. Nxe6 {[%clk 0:04:36.8]}
15... Qxe6 {[%clk 0:03:32.2]} 16. c4 {[%clk 0:04:35.7]} 16... fxg4 {[%clk
0:03:28.3]} 17. c5 {[%clk 0:04:34.6]} 17... Be7 {[%clk 0:03:15.7]} 18. Bc4
{[%clk 0:04:33.2]} 18... Qxc4 {[%clk 0:03:07.7]} 19. Qxc4+ {[%clk 0:04:31.8]}
19... Kh8 {[%clk 0:03:06.7]} 20. Qxg4 {[%clk 0:04:30.6]} 20... Rf7 {[%clk
0:03:01.5]} 21. Rg1 {[%clk 0:04:29.3]} 21... Raf8 {[%clk 0:02:59]} 22. Qg6
{[%clk 0:04:26.9]} 22... Bf6 {[%clk 0:02:52.9]} 23. f4 {[%clk 0:04:22.4]} 23...
Ne7 {[%clk 0:02:35.8]} 24. Qg2 {[%clk 0:04:17.7]} 24... Ng6 {[%clk 0:02:29.2]}
25. h5 {[%clk 0:04:14.7]} 25... Ne7 {[%clk 0:02:09]} 26. Bxe5 {[%clk 0:04:13.1]}
26... Bxe5 {[%clk 0:02:03]} 27. fxe5 {[%clk 0:04:12.1]} 27... Nf5 {[%clk
0:01:56.1]} 28. e6 {[%clk 0:04:10.2]} 28... Re7 {[%clk 0:01:55.1]} 29. Qg6
{[%clk 0:04:01]} 29... Nh4 {[%clk 0:01:50.2]} 30. Qg4 {[%clk 0:03:57.3]} 30...
Nf3+ {[%clk 0:01:47.7]} 31. Ke2 {[%clk 0:03:55.5]} 31... Nxg1+ {[%clk 0:01:45]}
32. Rxg1 {[%clk 0:03:54.2]} 32... Rfe8 {[%clk 0:01:26.7]} 33. d4 {[%clk
0:03:50.4]} 33... c6 {[%clk 0:01:24.2]} 34. Kd3 {[%clk 0:03:48.7]} 34... Rg8
{[%clk 0:01:18.5]} 35. e4 {[%clk 0:03:47.1]} 35... Rd8 {[%clk 0:01:16.7]} 36.
Kc4 {[%clk 0:03:45.5]} 36... b5+ {[%clk 0:01:10.5]} 37. Kb4 {[%clk 0:03:42.9]}
37... a5+ {[%clk 0:01:03.9]} 38. Kxa5 {[%clk 0:03:41.4]} 38... Ra8+ {[%clk
0:00:54.7]} 39. Kb6 {[%clk 0:03:38.3]} 39... Rb8+ {[%clk 0:00:48.1]} 40. Kxc6
{[%clk 0:03:36.9]} 40... Rc8+ {[%clk 0:00:39.8]} 41. Kxb5 {[%clk 0:03:35.7]}
41... Rb7+ {[%clk 0:00:35.7]} 42. Kc4 {[%clk 0:03:34.5]} 42... Re7 {[%clk
0:00:32.8]} 43. d5 {[%clk 0:03:33.3]} 43... Rec7 {[%clk 0:00:30.9]} 44. c6
{[%clk 0:03:29.6]} 1-0

[Event "Live Chess"]
[Site "Chess.com"]
[Date "2023.05.21"]
[Round "-"]
[White "CeladonFish"]
[Black "martynstanley"]
[Result "1-0"]
[WhiteElo "1080"]
[BlackElo "989"]
[TimeControl "300"]
[EndTime "23:48:05 PDT"]
[Termination "CeladonFish won by checkmate"]

1. d4 {[%clk 0:04:58]} 1... e6 {[%clk 0:04:59.8]} 2. c4 {[%clk 0:04:56.9]} 2...
d5 {[%clk 0:04:59.6]} 3. Nc3 {[%clk 0:04:55.6]} 3... c5 {[%clk 0:04:58.4]} 4.
cxd5 {[%clk 0:04:54.3]} 4... exd5 {[%clk 0:04:57.2]} 5. dxc5 {[%clk 0:04:53.5]}
5... Bxc5 {[%clk 0:04:55.2]} 6. Nf3 {[%clk 0:04:52.5]} 6... Qb6 {[%clk
0:04:54.1]} 7. e3 {[%clk 0:04:48.8]} 7... d4 {[%clk 0:04:50.1]} 8. Qa4+ {[%clk
0:04:46]} 8... Bd7 {[%clk 0:04:48.4]} 9. Nd5 {[%clk 0:04:35]} 9... Bxa4 {[%clk
0:04:38.4]} 10. Nxb6 {[%clk 0:04:33.3]} 10... axb6 {[%clk 0:04:37.6]} 11. exd4
{[%clk 0:04:30.3]} 11... Bb4+ {[%clk 0:04:33.5]} 12. Bd2 {[%clk 0:04:20.7]}
12... Bxd2+ {[%clk 0:04:32.1]} 13. Nxd2 {[%clk 0:04:19.5]} 13... Ne7 {[%clk
0:04:31.2]} 14. Nc4 {[%clk 0:04:18.4]} 14... b5 {[%clk 0:04:27.2]} 15. Nb6
{[%clk 0:04:16.3]} 15... Ra6 {[%clk 0:04:24.4]} 16. Nxa4 {[%clk 0:04:09.2]}
16... Rxa4 {[%clk 0:04:22.9]} 17. b3 {[%clk 0:04:08.2]} 17... Rxd4 {[%clk
0:04:21.3]} 18. g3 {[%clk 0:04:02.7]} 18... O-O {[%clk 0:04:20.2]} 19. Bg2
{[%clk 0:04:01.5]} 19... Rfd8 {[%clk 0:04:18.7]} 20. O-O {[%clk 0:04:00.4]}
20... b6 {[%clk 0:04:16.6]} 21. Rfe1 {[%clk 0:03:58.7]} 21... Ng6 {[%clk
0:04:13.7]} 22. Re2 {[%clk 0:03:56.2]} 22... f6 {[%clk 0:04:10.6]} 23. Rae1
{[%clk 0:03:53.3]} 23... Ne5 {[%clk 0:04:08.6]} 24. f4 {[%clk 0:03:51.6]} 24...
Nf7 {[%clk 0:03:59.9]} 25. Re8+ {[%clk 0:03:49.5]} 25... Rxe8 {[%clk 0:03:58.7]}
26. Rxe8# {[%clk 0:03:48.5]} 1-0

[Event "Live Chess"]
[Site "Chess.com"]
[Date "2023.05.21"]
[Round "-"]
[White "amazinggoalkeeper"]
[Black "elephantgerrald"]
[Result "0-1"]
[WhiteElo "507"]
[BlackElo "613"]
[TimeControl "300"]
[EndTime "23:48:16 PDT"]
[Termination "elephantgerrald won by checkmate"]

1. e4 {[%clk 0:04:59.1]} 1... e5 {[%clk 0:04:58.7]} 2. Nf3 {[%clk 0:04:57.8]}
2... Nf6 {[%clk 0:04:57.1]} 3. Nc3 {[%clk 0:04:54]} 3... Nc6 {[%clk 0:04:55.2]}
4. Qe2 {[%clk 0:04:48.4]} 4... Bb4 {[%clk 0:04:51]} 5. g3 {[%clk 0:04:48.3]}
5... Bxc3 {[%clk 0:04:49.1]} 6. dxc3 {[%clk 0:04:48.2]} 6... O-O {[%clk
0:04:47.1]} 7. Bg2 {[%clk 0:04:47]} 7... d6 {[%clk 0:04:45.5]} 8. O-O {[%clk
0:04:44.4]} 8... Bg4 {[%clk 0:04:43.3]} 9. h3 {[%clk 0:04:42.6]} 9... Bxf3
{[%clk 0:04:42.1]} 10. Bxf3 {[%clk 0:04:41.5]} 10... Qd7 {[%clk 0:04:36]} 11.
Bg4 {[%clk 0:04:39.1]} 11... Nxg4 {[%clk 0:04:33.2]} 12. Qxg4 {[%clk 0:04:39]}
12... Qxg4 {[%clk 0:04:31.6]} 13. hxg4 {[%clk 0:04:38.9]} 13... Rad8 {[%clk
0:04:27.3]} 14. f3 {[%clk 0:04:37.6]} 14... d5 {[%clk 0:04:24]} 15. exd5 {[%clk
0:04:36.3]} 15... Rxd5 {[%clk 0:04:22.4]} 16. Kg2 {[%clk 0:04:34.2]} 16... f6
{[%clk 0:04:11.7]} 17. c4 {[%clk 0:04:31.1]} 17... Rdd8 {[%clk 0:04:07.9]} 18.
b3 {[%clk 0:04:28.6]} 18... Nd4 {[%clk 0:04:02.9]} 19. Rf2 {[%clk 0:04:15.8]}
19... f5 {[%clk 0:03:53.8]} 20. c3 {[%clk 0:04:13.8]} 20... Nc6 {[%clk
0:03:48.2]} 21. b4 {[%clk 0:04:10.9]} 21... fxg4 {[%clk 0:03:45.9]} 22. b5
{[%clk 0:04:09.3]} 22... gxf3+ {[%clk 0:03:43.4]} 23. Rxf3 {[%clk 0:04:08.1]}
23... Rxf3 {[%clk 0:03:41.7]} 24. Kxf3 {[%clk 0:04:08]} 24... Ne7 {[%clk
0:03:31.3]} 25. Bg5 {[%clk 0:04:06.6]} 25... Rd3+ {[%clk 0:03:28.5]} 26. Ke4
{[%clk 0:04:05.2]} 26... Rxc3 {[%clk 0:03:26.4]} 27. Bxe7 {[%clk 0:04:02.7]}
27... Rxc4+ {[%clk 0:03:25.1]} 28. Kxe5 {[%clk 0:04:01.6]} 28... Kf7 {[%clk
0:03:12.2]} 29. Bg5 {[%clk 0:03:47.1]} 29... Rc5+ {[%clk 0:03:09.9]} 30. Kd4
{[%clk 0:03:45.9]} 30... Rxg5 {[%clk 0:03:07.9]} 31. Rf1+ {[%clk 0:03:42.9]}
31... Kg6 {[%clk 0:03:06]} 32. Rf4 {[%clk 0:03:40.7]} 32... Rxg3 {[%clk
0:02:59.6]} 33. a4 {[%clk 0:03:37.1]} 33... Kg5 {[%clk 0:02:56.9]} 34. Rf7
{[%clk 0:03:35]} 34... Rg4+ {[%clk 0:02:54.8]} 35. Kc5 {[%clk 0:03:33.8]} 35...
Rxa4 {[%clk 0:02:42.3]} 36. Rxc7 {[%clk 0:03:31.5]} 36... b6+ {[%clk 0:02:40.4]}
37. Kc6 {[%clk 0:03:30.2]} 37... Rc4+ {[%clk 0:02:38.1]} 38. Kb7 {[%clk
0:03:28.8]} 38... Rxc7+ {[%clk 0:02:34.8]} 39. Kxc7 {[%clk 0:03:28.2]} 39... h5
{[%clk 0:02:32.5]} 40. Kb7 {[%clk 0:03:28.1]} 40... h4 {[%clk 0:02:31.5]} 41.
Kxa7 {[%clk 0:03:28]} 41... h3 {[%clk 0:02:30.6]} 42. Kxb6 {[%clk 0:03:27.9]}
42... h2 {[%clk 0:02:29.7]} 43. Kc7 {[%clk 0:03:27.3]} 43... h1=Q {[%clk
0:02:27.7]} 44. b6 {[%clk 0:03:27.2]} 44... Qc1+ {[%clk 0:02:22.7]} 45. Kd6
{[%clk 0:03:25.8]} 45... Qf4+ {[%clk 0:02:08.3]} 46. Kc6 {[%clk 0:03:24.3]}
46... Qc4+ {[%clk 0:02:05]} 47. Kd7 {[%clk 0:03:22.9]} 47... Kf6 {[%clk
0:02:00.3]} 48. b7 {[%clk 0:03:20.5]} 48... Qe6+ {[%clk 0:01:58.8]} 49. Kc7
{[%clk 0:03:19.1]} 49... Qe8 {[%clk 0:01:41.9]} 50. b8=Q {[%clk 0:03:13.1]}
50... Qxb8+ {[%clk 0:01:40]} 51. Kxb8 {[%clk 0:03:13]} 51... g5 {[%clk
0:01:39.2]} 52. Kc7 {[%clk 0:03:12.1]} 52... g4 {[%clk 0:01:38.1]} 53. Kd6
{[%clk 0:03:12]} 53... g3 {[%clk 0:01:37]} 54. Kd5 {[%clk 0:03:11.9]} 54... g2
{[%clk 0:01:36]} 55. Kd4 {[%clk 0:03:11.8]} 55... g1=Q+ {[%clk 0:01:34.2]} 56.
Ke4 {[%clk 0:03:11.7]} 56... Qg2+ {[%clk 0:01:32.6]} 57. Kd4 {[%clk 0:03:11.4]}
57... Qf3 {[%clk 0:01:30.1]} 58. Kc4 {[%clk 0:03:08.9]} 58... Qe3 {[%clk
0:01:28.2]} 59. Kd5 {[%clk 0:03:07.6]} 59... Kf5 {[%clk 0:01:24.6]} 60. Kd6
{[%clk 0:03:06.4]} 60... Qe5+ {[%clk 0:01:23.1]} 61. Kc6 {[%clk 0:03:04.5]}
61... Ke6 {[%clk 0:01:20.9]} 62. Kb6 {[%clk 0:02:56.6]} 62... Qd5 {[%clk
0:01:19.4]} 63. Kc7 {[%clk 0:02:54.4]} 63... Qd6+ {[%clk 0:01:17.8]} 64. Kc8
{[%clk 0:02:53]} 64... Qd7+ {[%clk 0:01:16.2]} 65. Kb8 {[%clk 0:02:51.5]} 65...
Kd6 {[%clk 0:01:14.7]} 66. Ka8 {[%clk 0:02:50.6]} 66... Kc6 {[%clk 0:01:12]} 67.
Kb8 {[%clk 0:02:49.7]} 67... Qb7# {[%clk 0:01:10.4]} 0-1

[Event "Live Chess"]
[Site "Chess.com"]
[Date "2023.05.21"]
[Round "-"]
[White "Mugzwang"]
[Black "Singapourfeuj"]
[Result "0-1"]
[WhiteElo "1561"]
[BlackElo "2213"]
[TimeControl "300"]
[EndTime "23:48:51 PDT"]
[Termination "Singapourfeuj won by checkmate"]

1. Nf3 {[%clk 0:04:59.2]} 1... Nf6 {[%clk 0:04:58.8]} 2. d4 {[%clk 0:04:57.9]}
2... g6 {[%clk 0:04:58]} 3. g3 {[%clk 0:04:56.6]} 3... Bg7 {[%clk 0:04:57.4]} 4.
Bg2 {[%clk 0:04:56]} 4... O-O {[%clk 0:04:56.4]} 5. O-O {[%clk 0:04:54.9]} 5...
d5 {[%clk 0:04:55.2]} 6. c4 {[%clk 0:04:52.8]} 6... Nbd7 {[%clk 0:04:51.4]} 7.
cxd5 {[%clk 0:04:46.9]} 7... Nxd5 {[%clk 0:04:50.5]} 8. e4 {[%clk 0:04:46]} 8...
N5b6 {[%clk 0:04:49.5]} 9. Be3 {[%clk 0:04:39.4]} 9... e5 {[%clk 0:04:48]} 10.
d5 {[%clk 0:04:34.9]} 10... h6 {[%clk 0:04:45.3]} 11. Nc3 {[%clk 0:04:34]} 11...
f5 {[%clk 0:04:43.8]} 12. exf5 {[%clk 0:04:26]} 12... gxf5 {[%clk 0:04:42.8]}
13. d6 {[%clk 0:03:57]} 13... c6 {[%clk 0:04:36.9]} 14. Qc1 {[%clk 0:03:44.6]}
14... Qf6 {[%clk 0:04:34.1]} 15. Rd1 {[%clk 0:03:34.7]} 15... Nc4 {[%clk
0:04:32.8]} 16. Na4 {[%clk 0:03:13.7]} 16... Nxe3 {[%clk 0:04:31.2]} 17. Qxe3
{[%clk 0:03:12.1]} 17... Kh8 {[%clk 0:04:21.3]} 18. Nc5 {[%clk 0:03:02.7]} 18...
e4 {[%clk 0:04:16.2]} 19. Nd4 {[%clk 0:02:35]} 19... Nxc5 {[%clk 0:04:14]} 20.
Ne2 {[%clk 0:02:17]} 20... Nd3 {[%clk 0:04:12.8]} 21. Nf4 {[%clk 0:02:15.7]}
21... Bd7 {[%clk 0:04:10]} 22. Nxd3 {[%clk 0:02:13.1]} 22... exd3 {[%clk
0:04:08.7]} 23. Qxd3 {[%clk 0:02:12.3]} 23... Rae8 {[%clk 0:04:07.4]} 24. Rab1
{[%clk 0:01:59]} 24... f4 {[%clk 0:04:06.1]} 25. Qb3 {[%clk 0:01:40.2]} 25...
fxg3 {[%clk 0:04:03.5]} 26. fxg3 {[%clk 0:01:33.8]} 26... Qf2+ {[%clk
0:04:00.8]} 27. Kh1 {[%clk 0:01:32.2]} 27... Re2 {[%clk 0:03:58]} 28. Rg1 {[%clk
0:01:28.5]} 28... Bh3 {[%clk 0:03:56.7]} 29. Rbf1 {[%clk 0:00:58.9]} 29... Bxg2+
{[%clk 0:03:55.4]} 30. Rxg2 {[%clk 0:00:54.2]} 30... Qxg2# {[%clk 0:03:54.5]}
0-1

[Event "Live Chess"]
[Site "Chess.com"]
[Date "2023.05.21"]
[Round "-"]
[White "YichenLFC"]
[Black "chessfiction"]
[Result "0-1"]
[WhiteElo "978"]
[BlackElo "2347"]
[TimeControl "300"]
[EndTime "23:49:25 PDT"]
[Termination "chessfiction won by checkmate"]

1. e4 {[%clk 0:04:56.1]} 1... d5 {[%clk 0:04:58.6]} 2. exd5 {[%clk 0:04:52.3]}
2... c6 {[%clk 0:04:57.6]} 3. dxc6 {[%clk 0:04:48.6]} 3... e5 {[%clk 0:04:55.7]}
4. cxb7 {[%clk 0:04:40.4]} 4... Bxb7 {[%clk 0:04:54.7]} 5. Nc3 {[%clk
0:04:38.1]} 5... Bc5 {[%clk 0:04:53.2]} 6. Nf3 {[%clk 0:04:29.3]} 6... Nf6
{[%clk 0:04:50.9]} 7. Bc4 {[%clk 0:04:14.7]} 7... O-O {[%clk 0:04:40.3]} 8. O-O
{[%clk 0:04:10.2]} 8... e4 {[%clk 0:04:38.7]} 9. Ng5 {[%clk 0:04:06]} 9... Nc6
{[%clk 0:04:34.6]} 10. Ngxe4 {[%clk 0:04:02]} 10... Bb6 {[%clk 0:04:31.1]} 11.
b3 {[%clk 0:03:52.4]} 11... Ne5 {[%clk 0:04:25.6]} 12. Nxf6+ {[%clk 0:03:42]}
12... Qxf6 {[%clk 0:04:25.5]} 13. Be2 {[%clk 0:03:38.5]} 13... Qg6 {[%clk
0:04:23.1]} 14. g3 {[%clk 0:03:16.4]} 14... Qc6 {[%clk 0:04:20.2]} 15. Bf3
{[%clk 0:02:50.9]} 15... Nxf3+ {[%clk 0:04:18.8]} 16. Kg2 {[%clk 0:02:28.4]}
16... Ne1+ {[%clk 0:04:17.4]} 17. Kh3 {[%clk 0:02:22.3]} 17... Qg2+ {[%clk
0:04:15.1]} 18. Kg4 {[%clk 0:02:08.3]} 18... f5+ {[%clk 0:04:14.1]} 19. Kf4
{[%clk 0:02:01.6]} 19... Bc7+ {[%clk 0:04:08.4]} 20. Ke3 {[%clk 0:01:54.2]}
20... Rfe8+ {[%clk 0:04:06.2]} 21. Kd4 {[%clk 0:01:51.9]} 21... Bb6+ {[%clk
0:04:04.2]} 22. Kc4 {[%clk 0:01:46]} 22... Qc6+ {[%clk 0:04:02]} 23. Kb4 {[%clk
0:01:41.7]} 23... Qc5+ {[%clk 0:04:01.5]} 24. Ka4 {[%clk 0:01:37.4]} 24... Qa5#
{[%clk 0:04:01.4]} 0-1

[Event "Live Chess"]
[Site "Chess.com"]
[Date "2023.05.21"]
[Round "-"]
[White "profpirate4"]
[Black "Long1968"]
[Result "1-0"]
[WhiteElo "1260"]
[BlackElo "1009"]
[TimeControl "300"]
[EndTime "23:49:36 PDT"]
[Termination "profpirate4 won on time"]

1. d4 {[%clk 0:04:57.8]} 1... e6 {[%clk 0:04:58]} 2. c4 {[%clk 0:04:57.4]} 2...
d5 {[%clk 0:04:55.9]} 3. Nc3 {[%clk 0:04:57.3]} 3... Nf6 {[%clk 0:04:53.7]} 4.
cxd5 {[%clk 0:04:54.3]} 4... exd5 {[%clk 0:04:50.6]} 5. e3 {[%clk 0:04:52.8]}
5... c5 {[%clk 0:04:47.1]} 6. Bd3 {[%clk 0:04:47.9]} 6... cxd4 {[%clk
0:04:41.5]} 7. exd4 {[%clk 0:04:46.5]} 7... Nc6 {[%clk 0:04:38.6]} 8. Be3 {[%clk
0:04:43.4]} 8... Bb4 {[%clk 0:04:29.4]} 9. Nf3 {[%clk 0:04:40]} 9... O-O {[%clk
0:04:19.5]} 10. O-O {[%clk 0:04:38.7]} 10... Re8 {[%clk 0:04:13.4]} 11. Re1
{[%clk 0:04:37.2]} 11... Bg4 {[%clk 0:04:09.9]} 12. h3 {[%clk 0:04:32.4]} 12...
Bh5 {[%clk 0:03:58]} 13. g4 {[%clk 0:04:29.5]} 13... Bg6 {[%clk 0:03:55.3]} 14.
Bxg6 {[%clk 0:04:27.7]} 14... fxg6 {[%clk 0:03:51.4]} 15. Qb3 {[%clk 0:04:18.4]}
15... Ne4 {[%clk 0:03:31.7]} 16. Rec1 {[%clk 0:04:14.5]} 16... Qe7 {[%clk
0:03:09.4]} 17. Nxd5 {[%clk 0:04:02.7]} 17... Na5 {[%clk 0:01:37.9]} 18. Nxe7+
{[%clk 0:03:49.7]} 18... Kf8 {[%clk 0:01:27.9]} 19. Qxb4 {[%clk 0:03:48.2]}
19... Rxe7 {[%clk 0:01:22.1]} 20. Qxa5 {[%clk 0:03:46.8]} 20... Rae8 {[%clk
0:01:17.3]} 21. Ne5 {[%clk 0:03:41.2]} 21... Nd6 {[%clk 0:01:05.9]} 22. Rc7
{[%clk 0:03:35.2]} 22... b6 {[%clk 0:00:53.7]} 23. Qd5 {[%clk 0:03:28.6]} 23...
Rxc7 {[%clk 0:00:42.1]} 24. Qxd6+ {[%clk 0:03:27.4]} 24... Rce7 {[%clk
0:00:39.8]} 25. Nd7+ {[%clk 0:03:21.2]} 25... Kf7 {[%clk 0:00:31.8]} 26. Bg5
{[%clk 0:03:11.9]} 26... Re6 {[%clk 0:00:20.1]} 27. Qf4+ {[%clk 0:03:06.5]}
27... Kg8 {[%clk 0:00:12.9]} 28. d5 {[%clk 0:02:57.7]} 28... Re4 {[%clk
0:00:03.9]} 29. Qc7 {[%clk 0:02:52.7]} 1-0

[Event "Live Chess"]
[Site "Chess.com"]
[Date "2023.05.21"]
[Round "-"]
[White "Ferrarifan27"]
[Black "Crowded_House"]
[Result "1-0"]
[WhiteElo "2057"]
[BlackElo "1682"]
[TimeControl "300"]
[EndTime "23:49:50 PDT"]
[Termination "Ferrarifan27 won on time"]

1. e4 {[%clk 0:04:58.5]} 1... e6 {[%clk 0:04:58.7]} 2. d4 {[%clk 0:04:56.5]}
2... d5 {[%clk 0:04:58.3]} 3. Nc3 {[%clk 0:04:53.9]} 3... Bb4 {[%clk 0:04:55.5]}
4. e5 {[%clk 0:04:52.6]} 4... c5 {[%clk 0:04:51.3]} 5. a3 {[%clk 0:04:52.2]}
5... Bxc3+ {[%clk 0:04:49.1]} 6. bxc3 {[%clk 0:04:52.1]} 6... Qa5 {[%clk
0:04:44.8]} 7. Bd2 {[%clk 0:04:49.2]} 7... Qc7 {[%clk 0:04:34.5]} 8. Qg4 {[%clk
0:04:46]} 8... Ne7 {[%clk 0:04:31.8]} 9. Qxg7 {[%clk 0:04:44]} 9... Rg8 {[%clk
0:04:29.9]} 10. Qxh7 {[%clk 0:04:43.1]} 10... cxd4 {[%clk 0:04:28.4]} 11. cxd4
{[%clk 0:04:42.2]} 11... Nbc6 {[%clk 0:04:23.6]} 12. c3 {[%clk 0:04:39.4]} 12...
Bd7 {[%clk 0:04:17.4]} 13. Nf3 {[%clk 0:04:37.7]} 13... Rf8 {[%clk 0:04:10.7]}
14. Bd3 {[%clk 0:04:29.7]} 14... O-O-O {[%clk 0:04:08.5]} 15. Ng5 {[%clk
0:04:16.6]} 15... Rh8 {[%clk 0:03:56.1]} 16. Qxf7 {[%clk 0:04:14.6]} 16... Rdf8
{[%clk 0:03:50.2]} 17. Qg7 {[%clk 0:04:13.5]} 17... Rhg8 {[%clk 0:03:48.3]} 18.
Qh6 {[%clk 0:04:09.7]} 18... Rh8 {[%clk 0:03:46.5]} 19. Nh7 {[%clk 0:04:04.5]}
19... Rf7 {[%clk 0:03:34.7]} 20. O-O {[%clk 0:03:58.7]} 20... Nf5 {[%clk
0:03:33.4]} 21. Bxf5 {[%clk 0:03:53.7]} 21... exf5 {[%clk 0:03:27]} 22. e6
{[%clk 0:03:53]} 22... Rfxh7 {[%clk 0:03:22.4]} 23. exd7+ {[%clk 0:03:52.1]}
23... Qxd7 {[%clk 0:03:19.2]} 24. Qf4 {[%clk 0:03:48.9]} 24... Rxh2 {[%clk
0:03:15.1]} 25. Qxh2 {[%clk 0:03:47.7]} 25... Rxh2 {[%clk 0:03:13.8]} 26. Kxh2
{[%clk 0:03:47.6]} 26... Qh7+ {[%clk 0:03:10]} 27. Kg1 {[%clk 0:03:46.6]} 27...
Qh5 {[%clk 0:02:59.6]} 28. Rfe1 {[%clk 0:03:43.2]} 28... Kc7 {[%clk 0:02:51.1]}
29. Bf4+ {[%clk 0:03:35.3]} 29... Kb6 {[%clk 0:02:46.1]} 30. Rab1+ {[%clk
0:03:32]} 30... Ka6 {[%clk 0:02:44.2]} 31. Re6 {[%clk 0:03:16.9]} 31... Qg4
{[%clk 0:02:34.1]} 32. g3 {[%clk 0:03:11.9]} 32... Qf3 {[%clk 0:02:32.8]} 33.
Re3 {[%clk 0:03:06.4]} 33... Qg4 {[%clk 0:02:25.5]} 34. Kg2 {[%clk 0:03:02.4]}
34... Na5 {[%clk 0:02:17.6]} 35. Re6+ {[%clk 0:02:58.5]} 35... Nc6 {[%clk
0:02:15.8]} 36. f3 {[%clk 0:02:56.9]} 36... Qg8 {[%clk 0:02:11.2]} 37. Rd6
{[%clk 0:02:52]} 37... Qe8 {[%clk 0:02:04.5]} 38. Kf2 {[%clk 0:02:44.2]} 38...
Qh8 {[%clk 0:01:54]} 39. Rxd5 {[%clk 0:02:37.6]} 39... Qh2+ {[%clk 0:01:49.1]}
40. Ke3 {[%clk 0:02:36.8]} 40... Qc2 {[%clk 0:01:45.1]} 41. Rd1 {[%clk
0:02:26.8]} 41... Qxd1 {[%clk 0:01:40.2]} 42. Rxf5 {[%clk 0:02:12.5]} 42... Qc2
{[%clk 0:01:29.5]} 43. Rc5 {[%clk 0:02:09.6]} 43... Qc1+ {[%clk 0:01:19.5]} 44.
Ke4 {[%clk 0:02:07.9]} 44... Qxa3 {[%clk 0:01:13.9]} 45. g4 {[%clk 0:02:01]}
45... Qa1 {[%clk 0:01:02.9]} 46. g5 {[%clk 0:01:55.7]} 46... Qb1+ {[%clk
0:01:01.8]} 47. Kd5 {[%clk 0:01:47.2]} 47... Qf5+ {[%clk 0:00:57.6]} 48. Be5
{[%clk 0:01:46.1]} 48... Ne7+ {[%clk 0:00:52.4]} 49. Kc4 {[%clk 0:01:40.3]}
49... Qe6+ {[%clk 0:00:47.1]} 50. Kb4 {[%clk 0:01:30.2]} 50... Qb6+ {[%clk
0:00:40.9]} 51. Ka3 {[%clk 0:01:29]} 51... Nc6 {[%clk 0:00:28.7]} 52. Rc4 {[%clk
0:01:05]} 52... Nxe5 {[%clk 0:00:26.2]} 53. dxe5 {[%clk 0:01:03]} 53... Qe6
{[%clk 0:00:12.6]} 54. Ra4+ {[%clk 0:01:00.9]} 54... Kb6 {[%clk 0:00:12]} 55.
Rb4+ {[%clk 0:00:58]} 55... Kc7 {[%clk 0:00:10.2]} 56. f4 {[%clk 0:00:57.2]}
56... Qf5 {[%clk 0:00:08.5]} 57. Rc4+ {[%clk 0:00:53.3]} 57... Kd7 {[%clk
0:00:01.5]} 58. Kb4 {[%clk 0:00:51.9]} 58... Qb1+ {[%clk 0:00:00.4]} 59. Kc5
{[%clk 0:00:48.9]} 1-0

[Event "Live Chess"]
[Site "Chess.com"]
[Date "2023.05.21"]
[Round "-"]
[White "GiacoPietro"]
[Black "hturner40"]
[Result "0-1"]
[WhiteElo "627"]
[BlackElo "1787"]
[TimeControl "300"]
[EndTime "23:50:00 PDT"]
[Termination "hturner40 won by resignation"]

1. g3 {[%clk 0:04:55.2]} 1... Nf6 {[%clk 0:04:55.7]} 2. Bg2 {[%clk 0:04:53]}
2... g6 {[%clk 0:04:54.5]} 3. c3 {[%clk 0:04:44.9]} 3... Bg7 {[%clk 0:04:52.3]}
4. d4 {[%clk 0:04:40]} 4... d5 {[%clk 0:04:49.8]} 5. Nf3 {[%clk 0:04:27.8]} 5...
O-O {[%clk 0:04:47.7]} 6. O-O {[%clk 0:04:24.8]} 6... c5 {[%clk 0:04:39.4]} 7.
e3 {[%clk 0:04:19.7]} 7... cxd4 {[%clk 0:04:32.7]} 8. cxd4 {[%clk 0:04:17.3]}
8... Nc6 {[%clk 0:04:30.7]} 9. Nc3 {[%clk 0:04:16.3]} 9... Bf5 {[%clk
0:04:28.8]} 10. a3 {[%clk 0:03:57]} 10... Rc8 {[%clk 0:04:24.9]} 11. b4 {[%clk
0:03:51.8]} 11... Nxb4 {[%clk 0:04:18.2]} 12. axb4 {[%clk 0:03:46]} 12... Rxc3
{[%clk 0:04:14.3]} 13. Bd2 {[%clk 0:03:45.2]} 13... Bc2 {[%clk 0:03:59.8]} 14.
Qe2 {[%clk 0:03:26.9]} 14... Bd3 {[%clk 0:03:56.1]} 0-1